[Event "Late-Titled-Tuesday-Blitz-January-30-2024"]
[Site "Chess.com"]
[Date "2024.01.30"]
[Round "4"]
[White "crescentmoon2411"]
[Black "josmito10"]
[Result "0-1"]
[WhiteElo "3005"]
[BlackElo "2834"]
[TimeControl "180+1"]
[EndTime "14:38:50 PST"]
[Termination "josmito10 won by resignation"]

1. d4 {[%clk 0:02:56.4]} 1... d5 {[%clk 0:02:58.5]} 2. c4 {[%clk 0:02:54.6]}
2... e6 {[%clk 0:02:58.6]} 3. Nc3 {[%clk 0:02:54.2]} 3... a6 {[%clk 0:02:58.9]}
4. cxd5 {[%clk 0:02:53.6]} 4... exd5 {[%clk 0:02:59.3]} 5. Bf4 {[%clk
0:02:54.3]} 5... Nf6 {[%clk 0:02:58.8]} 6. e3 {[%clk 0:02:54.7]} 6... c6 {[%clk
0:02:59.2]} 7. Bd3 {[%clk 0:02:53.5]} 7... Bd6 {[%clk 0:02:59.5]} 8. Qf3 {[%clk
0:02:52.3]} 8... Bxf4 {[%clk 0:02:58.7]} 9. Qxf4 {[%clk 0:02:53.2]} 9... Nbd7
{[%clk 0:02:58.7]} 10. Nf3 {[%clk 0:02:46.4]} 10... O-O {[%clk 0:02:58.4]} 11.
g4 {[%clk 0:02:44]} 11... Re8 {[%clk 0:02:45.4]} 12. g5 {[%clk 0:02:41.1]} 12...
Ne4 {[%clk 0:02:45.5]} 13. Bxe4 {[%clk 0:02:39.1]} 13... dxe4 {[%clk 0:02:45.5]}
14. Nd2 {[%clk 0:02:39.4]} 14... Nf8 {[%clk 0:02:44.1]} 15. Ndxe4 {[%clk
0:02:33]} 15... Ng6 {[%clk 0:02:41.7]} 16. Qd6 {[%clk 0:02:28]} 16... Qb6 {[%clk
0:02:34.8]} 17. O-O-O {[%clk 0:02:21.8]} 17... Bg4 {[%clk 0:02:29.6]} 18. h4
{[%clk 0:01:38]} 18... Bxd1 {[%clk 0:02:27.5]} 19. Rxd1 {[%clk 0:01:38.9]} 19...
Rad8 {[%clk 0:02:25.3]} 20. Qg3 {[%clk 0:01:33.6]} 20... c5 {[%clk 0:02:01.4]}
21. Nxc5 {[%clk 0:01:25.6]} 21... Qc6 {[%clk 0:01:56.3]} 22. Nd3 {[%clk
0:01:20]} 22... b5 {[%clk 0:01:53.1]} 23. h5 {[%clk 0:01:13.1]} 23... Nf8 {[%clk
0:01:52.8]} 24. Kb1 {[%clk 0:01:06.3]} 24... a5 {[%clk 0:01:52.7]} 25. Ne5
{[%clk 0:01:03.8]} 25... Qe6 {[%clk 0:01:45.7]} 26. h6 {[%clk 0:00:52.3]} 26...
b4 {[%clk 0:01:45.4]} 27. Ne4 {[%clk 0:00:45.2]} 27... Qf5 {[%clk 0:01:45.1]}
28. f3 {[%clk 0:00:37.7]} 28... Rxe5 {[%clk 0:01:41]} 29. hxg7 {[%clk
0:00:37.5]} 29... Ne6 {[%clk 0:01:23.8]} 30. Qh4 {[%clk 0:00:14.8]} 30... Rxe4
{[%clk 0:00:55.6]} 31. fxe4 {[%clk 0:00:15.7]} 31... Qxg5 {[%clk 0:00:55.7]} 32.
Qh3 {[%clk 0:00:16.4]} 32... Qg6 {[%clk 0:00:52.5]} 33. Qh4 {[%clk 0:00:13]}
33... Ng5 {[%clk 0:00:50.8]} 34. Ka1 {[%clk 0:00:13.3]} 34... Rc8 {[%clk
0:00:46.5]} 35. e5 {[%clk 0:00:09.2]} 35... a4 {[%clk 0:00:39.9]} 36. d5 {[%clk
0:00:06.1]} 36... Qc2 {[%clk 0:00:36.1]} 37. Rb1 {[%clk 0:00:05.8]} 37... Nf3
{[%clk 0:00:28.3]} 38. Qxb4 {[%clk 0:00:03.9]} 38... Nd2 {[%clk 0:00:21.8]} 0-1

[Event "Late-Titled-Tuesday-Blitz-January-30-2024"]
[Site "Chess.com"]
[Date "2024.01.30"]
[Round "4"]
[White "Alex_Sahakyan2006"]
[Black "Ajedrecista3000"]
[Result "1-0"]
[WhiteElo "2865"]
[BlackElo "2589"]
[TimeControl "180+1"]
[EndTime "14:38:50 PST"]
[Termination "Alex_Sahakyan2006 won by checkmate"]

1. e4 {[%clk 0:03:00.9]} 1... e5 {[%clk 0:02:42.7]} 2. Nf3 {[%clk 0:02:59.1]}
2... Nc6 {[%clk 0:02:42.9]} 3. Nc3 {[%clk 0:02:51.1]} 3... Nf6 {[%clk
0:02:42.7]} 4. d4 {[%clk 0:02:51]} 4... exd4 {[%clk 0:02:42.8]} 5. Nxd4 {[%clk
0:02:51.9]} 5... Bb4 {[%clk 0:02:43.1]} 6. Nxc6 {[%clk 0:02:52]} 6... bxc6
{[%clk 0:02:44]} 7. Bd3 {[%clk 0:02:52.3]} 7... O-O {[%clk 0:02:43.3]} 8. O-O
{[%clk 0:02:51]} 8... d5 {[%clk 0:02:44]} 9. exd5 {[%clk 0:02:50]} 9... Bg4
{[%clk 0:02:44.7]} 10. f3 {[%clk 0:02:46.8]} 10... Bh5 {[%clk 0:02:45.2]} 11.
dxc6 {[%clk 0:02:46]} 11... Qd4+ {[%clk 0:02:45.6]} 12. Kh1 {[%clk 0:02:45.8]}
12... Bxc3 {[%clk 0:02:46.1]} 13. bxc3 {[%clk 0:02:46.1]} 13... Qxc3 {[%clk
0:02:46.8]} 14. Bg5 {[%clk 0:02:45.5]} 14... Bg6 {[%clk 0:02:38.8]} 15. Rb1
{[%clk 0:01:53.1]} 15... Qxc6 {[%clk 0:02:34.7]} 16. Bxg6 {[%clk 0:01:50.4]}
16... hxg6 {[%clk 0:02:33.6]} 17. Qe2 {[%clk 0:01:38.2]} 17... Rfe8 {[%clk
0:02:27.5]} 18. Qf2 {[%clk 0:01:37.3]} 18... a5 {[%clk 0:02:22.4]} 19. Rfe1
{[%clk 0:01:23.5]} 19... Nd5 {[%clk 0:02:21.8]} 20. Qd2 {[%clk 0:00:58.5]} 20...
Nc3 {[%clk 0:02:04.5]} 21. Ra1 {[%clk 0:00:31]} 21... Rxe1+ {[%clk 0:01:51.1]}
22. Qxe1 {[%clk 0:00:29.8]} 22... Re8 {[%clk 0:01:50.2]} 23. Qd2 {[%clk
0:00:24.9]} 23... a4 {[%clk 0:01:34.2]} 24. a3 {[%clk 0:00:22.1]} 24... Qc5
{[%clk 0:01:32.8]} 25. h4 {[%clk 0:00:20.7]} 25... Re2 {[%clk 0:01:11.1]} 26.
Qd8+ {[%clk 0:00:20.3]} 26... Kh7 {[%clk 0:01:11.8]} 27. Qd3 {[%clk 0:00:21.1]}
27... f6 {[%clk 0:00:56.8]} 28. Bf4 {[%clk 0:00:12.9]} 28... Qf2 {[%clk
0:00:52]} 29. Rg1 {[%clk 0:00:11.2]} 29... Rxc2 {[%clk 0:00:23.2]} 30. h5 {[%clk
0:00:08.7]} 30... f5 {[%clk 0:00:15.7]} 31. hxg6+ {[%clk 0:00:08.7]} 31... Kxg6
{[%clk 0:00:16.6]} 32. Bh2 {[%clk 0:00:07.6]} 32... Ne2 {[%clk 0:00:12.8]} 33.
Qd7 {[%clk 0:00:05.3]} 33... Nxg1 {[%clk 0:00:04.9]} 34. Qe8+ {[%clk 0:00:05.7]}
34... Kf6 {[%clk 0:00:04.5]} 35. Be5+ {[%clk 0:00:05.9]} 35... Kg5 {[%clk
0:00:04.2]} 36. f4+ {[%clk 0:00:06.5]} 36... Kh6 {[%clk 0:00:02.5]} 37. Qh8+
{[%clk 0:00:06.7]} 37... Kg6 {[%clk 0:00:03.2]} 38. Qxg7+ {[%clk 0:00:07.2]}
38... Kh5 {[%clk 0:00:04.1]} 39. Qg5# {[%clk 0:00:07.8]} 1-0

[Event "Late-Titled-Tuesday-Blitz-January-30-2024"]
[Site "Chess.com"]
[Date "2024.01.30"]
[Round "4"]
[White "iamanoush"]
[Black "NoHeThTo"]
[Result "1-0"]
[WhiteElo "2491"]
[BlackElo "2638"]
[TimeControl "180+1"]
[EndTime "14:38:50 PST"]
[Termination "iamanoush won by resignation"]

1. d4 {[%clk 0:03:00.9]} 1... Nf6 {[%clk 0:02:59.9]} 2. c4 {[%clk 0:03:00.9]}
2... g6 {[%clk 0:03:00.4]} 3. Nc3 {[%clk 0:03:00.6]} 3... Bg7 {[%clk 0:03:01]}
4. e4 {[%clk 0:03:00.5]} 4... d6 {[%clk 0:03:01.6]} 5. Be2 {[%clk 0:03:00.1]}
5... O-O {[%clk 0:03:01.9]} 6. Be3 {[%clk 0:03:00.1]} 6... c5 {[%clk 0:02:55.8]}
7. d5 {[%clk 0:02:59.5]} 7... e6 {[%clk 0:02:56]} 8. Nf3 {[%clk 0:02:59.5]} 8...
exd5 {[%clk 0:02:55.9]} 9. cxd5 {[%clk 0:03:00.4]} 9... b5 {[%clk 0:02:55.9]}
10. e5 {[%clk 0:02:59]} 10... dxe5 {[%clk 0:02:55]} 11. Bxc5 {[%clk 0:02:58.9]}
11... e4 {[%clk 0:02:37]} 12. Ng5 {[%clk 0:02:58.6]} 12... Re8 {[%clk
0:02:35.3]} 13. Bxb5 {[%clk 0:02:56.4]} 13... Nfd7 {[%clk 0:02:31.7]} 14. Be3
{[%clk 0:02:47.6]} 14... Qa5 {[%clk 0:02:30.4]} 15. Be2 {[%clk 0:02:37.5]} 15...
Bxc3+ {[%clk 0:02:10.4]} 16. bxc3 {[%clk 0:02:36.8]} 16... Qxc3+ {[%clk
0:02:11.3]} 17. Kf1 {[%clk 0:02:36.9]} 17... Ba6 {[%clk 0:02:10]} 18. Rc1 {[%clk
0:02:11.4]} 18... Qe5 {[%clk 0:02:01]} 19. Bxa6 {[%clk 0:01:59]} 19... Nxa6
{[%clk 0:01:59.6]} 20. Qa4 {[%clk 0:01:59.6]} 20... Nac5 {[%clk 0:01:48.2]} 21.
Bxc5 {[%clk 0:01:25.5]} 21... Nxc5 {[%clk 0:01:36.8]} 22. Rxc5 {[%clk
0:01:26.4]} 22... Qxg5 {[%clk 0:01:36.9]} 23. Qd4 {[%clk 0:01:03.8]} 23... e3
{[%clk 0:01:33.9]} 24. fxe3 {[%clk 0:00:51.9]} 24... Rab8 {[%clk 0:01:13.1]} 25.
d6 {[%clk 0:00:40]} 25... Qd8 {[%clk 0:00:36.3]} 26. Kf2 {[%clk 0:00:37]} 26...
Re6 {[%clk 0:00:31.1]} 27. Rd1 {[%clk 0:00:36.8]} 27... a5 {[%clk 0:00:17.7]}
28. Kg1 {[%clk 0:00:35.7]} 28... a4 {[%clk 0:00:17.6]} 29. d7 {[%clk 0:00:35.9]}
29... a3 {[%clk 0:00:16.6]} 30. Qc3 {[%clk 0:00:32.2]} 30... Re7 {[%clk
0:00:02.8]} 31. Rc8 {[%clk 0:00:30.5]} 31... Rxd7 {[%clk 0:00:03.4]} 32. Rxd8+
{[%clk 0:00:30.7]} 32... Rdxd8 {[%clk 0:00:04]} 33. Rxd8+ {[%clk 0:00:30.6]}
33... Rxd8 {[%clk 0:00:04.9]} 34. Qxa3 {[%clk 0:00:30.9]} 34... Rd1+ {[%clk
0:00:05.2]} 35. Kf2 {[%clk 0:00:30.5]} 35... Rd2+ {[%clk 0:00:06.1]} 36. Kf3
{[%clk 0:00:30.9]} 36... Rc2 {[%clk 0:00:06.2]} 37. Qa8+ {[%clk 0:00:30.3]}
37... Kg7 {[%clk 0:00:06.3]} 38. Qa4 {[%clk 0:00:29.4]} 38... Rc8 {[%clk
0:00:05.5]} 39. Qd4+ {[%clk 0:00:29.2]} 39... Kg8 {[%clk 0:00:06.2]} 40. a4
{[%clk 0:00:29.8]} 40... Rc6 {[%clk 0:00:06.6]} 41. a5 {[%clk 0:00:29]} 41...
Re6 {[%clk 0:00:07.3]} 42. Qc4 {[%clk 0:00:28.8]} 42... Rf6+ {[%clk 0:00:07.5]}
43. Ke2 {[%clk 0:00:28.8]} 43... Rd6 {[%clk 0:00:07.4]} 44. a6 {[%clk
0:00:29.2]} 44... Rd8 {[%clk 0:00:08]} 45. a7 {[%clk 0:00:29.4]} 45... Ra8
{[%clk 0:00:08.7]} 46. Qc7 {[%clk 0:00:29.1]} 46... h5 {[%clk 0:00:08.5]} 47.
Qb8+ {[%clk 0:00:29.1]} 1-0

[Event "Late-Titled-Tuesday-Blitz-January-30-2024"]
[Site "Chess.com"]
[Date "2024.01.30"]
[Round "4"]
[White "GiorgianBarbosa"]
[Black "rcmz"]
[Result "1-0"]
[WhiteElo "2460"]
[BlackElo "2135"]
[TimeControl "180+1"]
[EndTime "14:38:50 PST"]
[Termination "GiorgianBarbosa won on time"]

1. c4 {[%clk 0:00:11]} 1... d6 {[%clk 0:02:57.2]} 2. g3 {[%clk 0:00:11.9]} 2...
Nd7 {[%clk 0:02:56.6]} 3. Bg2 {[%clk 0:00:12.8]} 3... c6 {[%clk 0:02:55.5]} 4.
Nc3 {[%clk 0:00:13.7]} 4... h6 {[%clk 0:02:55.7]} 5. e3 {[%clk 0:00:14.6]} 5...
g5 {[%clk 0:02:55.9]} 6. Nge2 {[%clk 0:00:15.5]} 6... Bg7 {[%clk 0:02:56.2]} 7.
d3 {[%clk 0:00:16.4]} 7... Nf8 {[%clk 0:02:51]} 8. O-O {[%clk 0:00:17.3]} 8...
Nf6 {[%clk 0:02:51.1]} 9. e4 {[%clk 0:00:17.6]} 9... e5 {[%clk 0:02:51]} 10. h3
{[%clk 0:00:17.8]} 10... Qc7 {[%clk 0:02:50.7]} 11. Be3 {[%clk 0:00:17.6]} 11...
Ng6 {[%clk 0:02:50.4]} 12. d4 {[%clk 0:00:18.5]} 12... Be6 {[%clk 0:02:44.2]}
13. d5 {[%clk 0:00:18.2]} 13... Bd7 {[%clk 0:02:42.8]} 14. Kh2 {[%clk
0:00:17.6]} 14... a6 {[%clk 0:02:36.8]} 15. Rc1 {[%clk 0:00:16.7]} 15... c5
{[%clk 0:02:36.6]} 16. f4 {[%clk 0:00:16.4]} 16... gxf4 {[%clk 0:02:21.7]} 17.
gxf4 {[%clk 0:00:17.3]} 17... h5 {[%clk 0:02:17.4]} 18. f5 {[%clk 0:00:15.6]}
18... Nh4 {[%clk 0:02:15.9]} 19. Rg1 {[%clk 0:00:14.7]} 19... O-O-O {[%clk
0:01:50.8]} 20. Qd2 {[%clk 0:00:14.3]} 20... Rdg8 {[%clk 0:01:37.7]} 21. Bh1
{[%clk 0:00:14.6]} 21... Bxf5 {[%clk 0:00:57.5]} 22. exf5 {[%clk 0:00:13.7]}
22... Nxf5 {[%clk 0:00:57.2]} 23. Bg5 {[%clk 0:00:13.7]} 23... Qd7 {[%clk
0:00:30.2]} 24. Rcf1 {[%clk 0:00:13.2]} 24... e4 {[%clk 0:00:22.6]} 25. Qf4
{[%clk 0:00:12.2]} 25... Ng4+ {[%clk 0:00:21.7]} 26. hxg4 {[%clk 0:00:12]} 26...
Be5 {[%clk 0:00:21.7]} 27. Qxe5 {[%clk 0:00:11.6]} 27... dxe5 {[%clk 0:00:20.9]}
28. gxf5 {[%clk 0:00:10.7]} 28... f6 {[%clk 0:00:18.4]} 29. Bh4 {[%clk 0:00:11]}
29... Rxg1 {[%clk 0:00:17.5]} 30. Kxg1 {[%clk 0:00:10.6]} 30... Qg7+ {[%clk
0:00:16.2]} 31. Kf2 {[%clk 0:00:10.4]} 31... Qg4 {[%clk 0:00:15.5]} 32. Bg3
{[%clk 0:00:10.4]} 32... h4 {[%clk 0:00:13.7]} 33. Bh2 {[%clk 0:00:10.9]} 33...
Qxf5+ {[%clk 0:00:09.6]} 34. Ke1 {[%clk 0:00:10.9]} 34... Qg4 {[%clk 0:00:06.8]}
35. Bxe4 {[%clk 0:00:10.6]} 35... Kb8 {[%clk 0:00:04.8]} 36. Bf5 {[%clk
0:00:10.7]} 36... Qxc4 {[%clk 0:00:02.6]} 37. Bg1 {[%clk 0:00:11.6]} 1-0

[Event "Late-Titled-Tuesday-Blitz-January-30-2024"]
[Site "Chess.com"]
[Date "2024.01.30"]
[Round "4"]
[White "Matalon"]
[Black "crazy_but_lazy"]
[Result "0-1"]
[WhiteElo "2404"]
[BlackElo "2629"]
[TimeControl "180+1"]
[EndTime "14:38:55 PST"]
[Termination "crazy_but_lazy won on time"]

1. e4 {[%clk 0:02:56.9]} 1... c5 {[%clk 0:02:59.2]} 2. Nf3 {[%clk 0:02:56.3]}
2... d6 {[%clk 0:02:59.1]} 3. d4 {[%clk 0:02:56.2]} 3... cxd4 {[%clk 0:03:00]}
4. Nxd4 {[%clk 0:02:55.9]} 4... Nf6 {[%clk 0:03:00.5]} 5. Nc3 {[%clk 0:02:55.6]}
5... a6 {[%clk 0:03:00.8]} 6. Bg5 {[%clk 0:02:54]} 6... e6 {[%clk 0:03:01]} 7.
f4 {[%clk 0:02:53.9]} 7... Be7 {[%clk 0:03:00.5]} 8. Qf3 {[%clk 0:02:52.8]} 8...
Qc7 {[%clk 0:03:00.3]} 9. O-O-O {[%clk 0:02:52]} 9... Nbd7 {[%clk 0:03:00.1]}
10. Bd3 {[%clk 0:02:51.6]} 10... b5 {[%clk 0:02:54.3]} 11. Rhe1 {[%clk
0:02:51.1]} 11... Bb7 {[%clk 0:02:54.3]} 12. Nd5 {[%clk 0:02:50.9]} 12... exd5
{[%clk 0:02:43]} 13. Nf5 {[%clk 0:02:49.3]} 13... dxe4 {[%clk 0:02:32.3]} 14.
Bxe4 {[%clk 0:02:46.1]} 14... Bxe4 {[%clk 0:02:32.3]} 15. Rxe4 {[%clk
0:02:45.2]} 15... Nxe4 {[%clk 0:02:32.4]} 16. Qxe4 {[%clk 0:02:44.4]} 16... O-O
{[%clk 0:02:32.5]} 17. Nxe7+ {[%clk 0:02:39]} 17... Kh8 {[%clk 0:02:32.1]} 18.
Rd3 {[%clk 0:02:39.6]} 18... f5 {[%clk 0:02:21.3]} 19. Qd5 {[%clk 0:02:19.5]}
19... Nf6 {[%clk 0:01:19.3]} 20. Bxf6 {[%clk 0:02:16.2]} 20... gxf6 {[%clk
0:01:19.7]} 21. Nxf5 {[%clk 0:02:08.1]} 21... Rae8 {[%clk 0:01:08.1]} 22. Nxd6
{[%clk 0:01:06.9]} 22... Re2 {[%clk 0:01:03.8]} 23. Rc3 {[%clk 0:01:04.4]} 23...
Qe7 {[%clk 0:00:59.6]} 24. b3 {[%clk 0:01:03.1]} 24... b4 {[%clk 0:00:17.3]} 25.
Rg3 {[%clk 0:00:45.5]} 25... Qc7 {[%clk 0:00:10]} 26. c4 {[%clk 0:00:24.9]}
26... bxc3 {[%clk 0:00:10.2]} 27. Qd4 {[%clk 0:00:17.3]} 27... c2 {[%clk
0:00:06.3]} 28. Nc4 {[%clk 0:00:14.8]} 28... Qe7 {[%clk 0:00:05]} 29. Re3 {[%clk
0:00:12.5]} 29... Rxe3 {[%clk 0:00:04.8]} 30. Nxe3 {[%clk 0:00:11.6]} 30... Qa3+
{[%clk 0:00:04.1]} 31. Kxc2 {[%clk 0:00:10.6]} 31... Qxa2+ {[%clk 0:00:04]} 32.
Kd3 {[%clk 0:00:11.2]} 32... Qa5 {[%clk 0:00:03.3]} 33. Nc4 {[%clk 0:00:09.2]}
33... Qc7 {[%clk 0:00:02.9]} 34. Nd6 {[%clk 0:00:07.7]} 34... Qc6 {[%clk
0:00:01.8]} 35. Ne4 {[%clk 0:00:04.5]} 35... Qe6 {[%clk 0:00:01.6]} 36. f5
{[%clk 0:00:03.9]} 36... Qxb3+ {[%clk 0:00:02.1]} 37. Ke2 {[%clk 0:00:02.3]}
37... Qf7 {[%clk 0:00:03]} 38. g4 {[%clk 0:00:01.5]} 38... Kg8 {[%clk
0:00:03.4]} 0-1

[Event "Late-Titled-Tuesday-Blitz-January-30-2024"]
[Site "Chess.com"]
[Date "2024.01.30"]
[Round "4"]
[White "Rikikits"]
[Black "wadsy27"]
[Result "1-0"]
[WhiteElo "2835"]
[BlackElo "2624"]
[TimeControl "180+1"]
[EndTime "14:39:00 PST"]
[Termination "Rikikits won on time"]

1. d4 {[%clk 0:02:53.5]} 1... Nf6 {[%clk 0:02:56.4]} 2. c4 {[%clk 0:02:53.3]}
2... c5 {[%clk 0:02:56.6]} 3. d5 {[%clk 0:02:53.1]} 3... e6 {[%clk 0:02:57.2]}
4. Nc3 {[%clk 0:02:53.6]} 4... exd5 {[%clk 0:02:57.8]} 5. cxd5 {[%clk
0:02:54.5]} 5... d6 {[%clk 0:02:58.3]} 6. Nf3 {[%clk 0:02:55]} 6... g6 {[%clk
0:02:58.8]} 7. Nd2 {[%clk 0:02:55.1]} 7... Nbd7 {[%clk 0:02:56.7]} 8. e4 {[%clk
0:02:54]} 8... Bg7 {[%clk 0:02:55.6]} 9. Be2 {[%clk 0:02:54.5]} 9... O-O {[%clk
0:02:54.5]} 10. O-O {[%clk 0:02:55.1]} 10... a6 {[%clk 0:02:43.4]} 11. a4 {[%clk
0:02:54.8]} 11... Re8 {[%clk 0:02:37]} 12. Re1 {[%clk 0:02:48.9]} 12... g5
{[%clk 0:02:32.7]} 13. Ra3 {[%clk 0:02:42.6]} 13... Ne5 {[%clk 0:02:29.8]} 14.
Nf1 {[%clk 0:02:40.7]} 14... h6 {[%clk 0:02:21.6]} 15. Ng3 {[%clk 0:02:37.5]}
15... Bd7 {[%clk 0:02:19.4]} 16. a5 {[%clk 0:02:32.2]} 16... b5 {[%clk
0:02:13.8]} 17. axb6 {[%clk 0:02:33.1]} 17... Qxb6 {[%clk 0:02:13.6]} 18. Rb3
{[%clk 0:02:23.6]} 18... Qa7 {[%clk 0:02:08.3]} 19. h3 {[%clk 0:02:22.1]} 19...
Reb8 {[%clk 0:02:06.3]} 20. Ra3 {[%clk 0:02:17.8]} 20... a5 {[%clk 0:01:59.1]}
21. Qc2 {[%clk 0:02:15.2]} 21... Rb4 {[%clk 0:01:33.8]} 22. f4 {[%clk
0:02:07.9]} 22... gxf4 {[%clk 0:01:32]} 23. Bxf4 {[%clk 0:02:08.8]} 23... Rab8
{[%clk 0:01:23.4]} 24. Bc1 {[%clk 0:01:51.2]} 24... c4+ {[%clk 0:01:08.3]} 25.
Kh2 {[%clk 0:01:49.8]} 25... h5 {[%clk 0:00:37.6]} 26. Rf1 {[%clk 0:01:47.6]}
26... h4 {[%clk 0:00:32.1]} 27. Nf5 {[%clk 0:01:46.1]} 27... Bxf5 {[%clk
0:00:30.9]} 28. Rxf5 {[%clk 0:01:47]} 28... Qd4 {[%clk 0:00:20.4]} 29. Qd1
{[%clk 0:01:44]} 29... Qxd1 {[%clk 0:00:18.3]} 30. Bxd1 {[%clk 0:01:44.9]} 30...
Nd3 {[%clk 0:00:18.2]} 31. Bg5 {[%clk 0:01:40.8]} 31... Nh7 {[%clk 0:00:17]} 32.
Bxh4 {[%clk 0:01:37.2]} 32... Rxb2 {[%clk 0:00:15.1]} 33. Bh5 {[%clk 0:01:33.8]}
33... Rc2 {[%clk 0:00:13.1]} 34. Nd1 {[%clk 0:01:16.9]} 34... c3 {[%clk
0:00:06.1]} 35. Bxf7+ {[%clk 0:01:11.7]} 35... Kh8 {[%clk 0:00:06.3]} 36. Bg3
{[%clk 0:01:02.2]} 36... Rc1 {[%clk 0:00:04.6]} 37. Nxc3 {[%clk 0:00:59.3]}
37... Rxc3 {[%clk 0:00:04.1]} 38. Rxc3 {[%clk 0:00:58.2]} 38... Bxc3 {[%clk
0:00:05]} 39. Bxd6 {[%clk 0:00:57.5]} 39... Ra8 {[%clk 0:00:05.6]} 40. e5 {[%clk
0:00:55.2]} 40... a4 {[%clk 0:00:06]} 41. e6 {[%clk 0:00:55.7]} 41... a3 {[%clk
0:00:06.5]} 42. Bxa3 {[%clk 0:00:53.6]} 42... Rxa3 {[%clk 0:00:06.6]} 43. e7
{[%clk 0:00:52.7]} 43... Ra8 {[%clk 0:00:07.1]} 44. e8=Q+ {[%clk 0:00:51]} 44...
Rxe8 {[%clk 0:00:07.3]} 45. Bxe8 {[%clk 0:00:51.9]} 45... Be5+ {[%clk
0:00:07.5]} 46. Kg1 {[%clk 0:00:50.5]} 46... Nf6 {[%clk 0:00:07.9]} 47. Bb5
{[%clk 0:00:47.4]} 47... Bd4+ {[%clk 0:00:07]} 48. Kf1 {[%clk 0:00:47.4]} 48...
Nc5 {[%clk 0:00:06.4]} 49. d6 {[%clk 0:00:45.7]} 49... Kg7 {[%clk 0:00:06.4]}
50. g4 {[%clk 0:00:43.4]} 50... Ne6 {[%clk 0:00:06.4]} 51. d7 {[%clk 0:00:41.1]}
51... Bb6 {[%clk 0:00:06.2]} 52. Kg2 {[%clk 0:00:37.8]} 52... Bd8 {[%clk
0:00:05.8]} 53. Re5 {[%clk 0:00:33.6]} 53... Nf8 {[%clk 0:00:04.6]} 54. Re8
{[%clk 0:00:32.2]} 1-0

[Event "Late-Titled-Tuesday-Blitz-January-30-2024"]
[Site "Chess.com"]
[Date "2024.01.30"]
[Round "4"]
[White "ACollins05"]
[Black "nikitadovbnya2008"]
[Result "0-1"]
[WhiteElo "2445"]
[BlackElo "2157"]
[TimeControl "180+1"]
[EndTime "14:39:02 PST"]
[Termination "nikitadovbnya2008 won by resignation"]

1. d4 {[%clk 0:03:00.9]} 1... Nf6 {[%clk 0:02:59.5]} 2. c4 {[%clk 0:03:00.9]}
2... e6 {[%clk 0:02:59.5]} 3. Nf3 {[%clk 0:03:00.9]} 3... Bb4+ {[%clk
0:02:56.7]} 4. Nbd2 {[%clk 0:03:00.6]} 4... O-O {[%clk 0:02:55.6]} 5. a3 {[%clk
0:03:00.5]} 5... Bxd2+ {[%clk 0:02:55.5]} 6. Qxd2 {[%clk 0:03:01.4]} 6... b6
{[%clk 0:02:56.1]} 7. b4 {[%clk 0:03:00.6]} 7... Bb7 {[%clk 0:02:55.3]} 8. Bb2
{[%clk 0:03:01]} 8... d6 {[%clk 0:02:50.3]} 9. e3 {[%clk 0:03:01.1]} 9... Nbd7
{[%clk 0:02:49.8]} 10. Be2 {[%clk 0:03:00.9]} 10... a5 {[%clk 0:02:45]} 11. O-O
{[%clk 0:03:00.5]} 11... Qe7 {[%clk 0:02:41.7]} 12. Rfc1 {[%clk 0:02:57.1]}
12... Ne4 {[%clk 0:02:35.1]} 13. Qc2 {[%clk 0:02:55.9]} 13... c5 {[%clk
0:02:32.3]} 14. Bd3 {[%clk 0:02:45.7]} 14... f5 {[%clk 0:02:29.4]} 15. b5 {[%clk
0:02:36.7]} 15... Rae8 {[%clk 0:02:22.4]} 16. Nd2 {[%clk 0:02:28.1]} 16... Qh4
{[%clk 0:02:19]} 17. g3 {[%clk 0:02:20.3]} 17... Qg4 {[%clk 0:02:08.4]} 18. f3
{[%clk 0:01:45.8]} 18... Qg5 {[%clk 0:02:06.6]} 19. Nf1 {[%clk 0:01:20.3]} 19...
Nef6 {[%clk 0:02:00.9]} 20. Qf2 {[%clk 0:01:14.2]} 20... Qh5 {[%clk 0:01:54.7]}
21. Nd2 {[%clk 0:01:10.3]} 21... e5 {[%clk 0:01:49.6]} 22. d5 {[%clk 0:01:09.5]}
22... e4 {[%clk 0:01:44.4]} 23. Be2 {[%clk 0:01:07]} 23... exf3 {[%clk
0:01:42.2]} 24. Bxf3 {[%clk 0:01:07.9]} 24... Qh6 {[%clk 0:01:40.3]} 25. Re1
{[%clk 0:01:06.2]} 25... Ne5 {[%clk 0:01:37.3]} 26. Bxe5 {[%clk 0:01:01.1]}
26... Rxe5 {[%clk 0:01:36.7]} 27. Re2 {[%clk 0:00:52.8]} 27... Ng4 {[%clk
0:01:31.5]} 28. Bxg4 {[%clk 0:00:52.3]} 28... fxg4 {[%clk 0:01:32.4]} 29. Qe1
{[%clk 0:00:45.4]} 29... Bc8 {[%clk 0:01:32.1]} 30. Rc1 {[%clk 0:00:39.4]} 30...
Bf5 {[%clk 0:01:27.5]} 31. Rc3 {[%clk 0:00:36.7]} 31... Be4 {[%clk 0:01:23.7]}
32. Nxe4 {[%clk 0:00:36.6]} 32... Rxe4 {[%clk 0:01:24.6]} 33. Rf2 {[%clk
0:00:37.1]} 33... Rfe8 {[%clk 0:01:21.3]} 34. Re2 {[%clk 0:00:33.4]} 34... a4
{[%clk 0:01:17.7]} 35. Qd2 {[%clk 0:00:30.6]} 35... Qg5 {[%clk 0:01:14.8]} 36.
Qd3 {[%clk 0:00:22.2]} 36... h5 {[%clk 0:01:13]} 37. Qd2 {[%clk 0:00:19.5]}
37... h4 {[%clk 0:01:12.7]} 38. Qe1 {[%clk 0:00:20.1]} 38... h3 {[%clk 0:01:10]}
39. Qf2 {[%clk 0:00:18.1]} 39... Rf8 {[%clk 0:01:07.5]} 40. Qe1 {[%clk
0:00:18.5]} 40... Rf3 {[%clk 0:01:05.8]} 41. Qc1 {[%clk 0:00:16.7]} 41... Qf6
{[%clk 0:00:58.9]} 42. Qe1 {[%clk 0:00:14.4]} 42... Qe5 {[%clk 0:00:56.1]} 43.
Qd2 {[%clk 0:00:09.5]} 43... Rxg3+ {[%clk 0:00:47.7]} 44. hxg3 {[%clk
0:00:10.4]} 44... Qxg3+ {[%clk 0:00:47.4]} 45. Kf1 {[%clk 0:00:11.1]} 45... Qf3+
{[%clk 0:00:44.8]} 46. Rf2 {[%clk 0:00:11.1]} 46... h2 {[%clk 0:00:40.1]} 47.
Rxf3 {[%clk 0:00:04.5]} 47... h1=Q+ {[%clk 0:00:39.9]} 48. Kf2 {[%clk 0:00:05]}
48... Qxf3+ {[%clk 0:00:38.1]} 49. Ke1 {[%clk 0:00:05.2]} 49... g3 {[%clk
0:00:34.3]} 50. Qe2 {[%clk 0:00:05.8]} 50... Qh1+ {[%clk 0:00:31.8]} 51. Kd2
{[%clk 0:00:03.3]} 51... g2 {[%clk 0:00:32.3]} 52. Qf3 {[%clk 0:00:02.4]} 52...
g1=Q {[%clk 0:00:30.5]} 53. Qxh1 {[%clk 0:00:03.3]} 53... Qxh1 {[%clk
0:00:30.6]} 0-1